Workbook

Sheet Sheet1
A1: 开阳县2024年下半年公开招聘事业单位工作人员笔试成绩排名 及进入资格复审人员名单
A2: 报考单位 | B2: 准考证号 | C2: 岗位编号 | D2: 岗位名称 | E2: 得分 | F2: 排名 | G2: 备注
A3: 开阳县纪检监察信息中心 | B3: 20241031928 | C3: 2024000101 | D3: 专业技术岗位 | E3: 121.86 | F3: =SUMPRODUCT((C:C=C3)*(E:E>E3))+1 -> 1 | G3: 参加资格复审
A4: 开阳县纪检监察信息中心 | B4: 20241023319 | C4: 2024000101 | D4: 专业技术岗位 | E4: 121.08 | F4: =SUMPRODUCT((C:C=C4)*(E:E>E4))+1 -> 2 | G4: 参加资格复审
A5: 开阳县纪检监察信息中心 | B5: 20241012303 | C5: 2024000101 | D5: 专业技术岗位 | E5: 120.63 | F5: =SUMPRODUCT((C:C=C5)*(E:E>E5))+1 -> 3 | G5: 参加资格复审
A6: 开阳县纪检监察信息中心 | B6: 20241025608 | C6: 2024000101 | D6: 专业技术岗位 | E6: 119.85 | F6: =SUMPRODUCT((C:C=C6)*(E:E>E6))+1 -> 4
A7: 开阳县纪检监察信息中心 | B7: 20241041515 | C7: 2024000101 | D7: 专业技术岗位 | E7: 118.14 | F7: =SUMPRODUCT((C:C=C7)*(E:E>E7))+1 -> 5
A8: 开阳县纪检监察信息中心 | B8: 20241011601 | C8: 2024000101 | D8: 专业技术岗位 | E8: 117.24 | F8: =SUMPRODUCT((C:C=C8)*(E:E>E8))+1 -> 6
A9: 开阳县纪检监察信息中心 | B9: 20241021907 | C9: 2024000101 | D9: 专业技术岗位 | E9: 116.46 | F9: =SUMPRODUCT((C:C=C9)*(E:E>E9))+1 -> 7
A10: 开阳县纪检监察信息中心 | B10: 20241031911 | C10: 2024000101 | D10: 专业技术岗位 | E10: 116.16 | F10: =SUMPRODUCT((C:C=C10)*(E:E>E10))+1 -> 8
A11: 开阳县纪检监察信息中心 | B11: 20241015625 | C11: 2024000101 | D11: 专业技术岗位 | E11: 115.53 | F11: =SUMPRODUCT((C:C=C11)*(E:E>E11))+1 -> 9
A12: 开阳县纪检监察信息中心 | B12: 20241033017 | C12: 2024000101 | D12: 专业技术岗位 | E12: 114.33 | F12: =SUMPRODUCT((C:C=C12)*(E:E>E12))+1 -> 10
A13: 开阳县纪检监察信息中心 | B13: 20241024813 | C13: 2024000101 | D13: 专业技术岗位 | E13: 113.25 | F13: =SUMPRODUCT((C:C=C13)*(E:E>E13))+1 -> 11
A14: 开阳县纪检监察信息中心 | B14: 20241014315 | C14: 2024000101 | D14: 专业技术岗位 | E14: 113.07 | F14: =SUMPRODUCT((C:C=C14)*(E:E>E14))+1 -> 12
A15: 开阳县纪检监察信息中心 | B15: 20241035225 | C15: 2024000101 | D15: 专业技术岗位 | E15: 112.77 | F15: =SUMPRODUCT((C:C=C15)*(E:E>E15))+1 -> 13
A16: 开阳县纪检监察信息中心 | B16: 20241034112 | C16: 2024000101 | D16: 专业技术岗位 | E16: 112.62 | F16: =SUMPRODUCT((C:C=C16)*(E:E>E16))+1 -> 14
A17: 开阳县纪检监察信息中心 | B17: 20241034720 | C17: 2024000101 | D17: 专业技术岗位 | E17: 112.62 | F17: =SUMPRODUCT((C:C=C17)*(E:E>E17))+1 -> 14
A18: 开阳县纪检监察信息中心 | B18: 20241030618 | C18: 2024000101 | D18: 专业技术岗位 | E18: 112.47 | F18: =SUMPRODUCT((C:C=C18)*(E:E>E18))+1 -> 16
A19: 开阳县纪检监察信息中心 | B19: 20241025128 | C19: 2024000101 | D19: 专业技术岗位 | E19: 112.32 | F19: =SUMPRODUCT((C:C=C19)*(E:E>E19))+1 -> 17
A20: 开阳县纪检监察信息中心 | B20: 20241035811 | C20: 2024000101 | D20: 专业技术岗位 | E20: 112.32 | F20: =SUMPRODUCT((C:C=C20)*(E:E>E20))+1 -> 17
A21: 开阳县纪检监察信息中心 | B21: 20241022929 | C21: 2024000101 | D21: 专业技术岗位 | E21: 111.69 | F21: =SUMPRODUCT((C:C=C21)*(E:E>E21))+1 -> 19
A22: 开阳县纪检监察信息中心 | B22: 20241040305 | C22: 2024000101 | D22: 专业技术岗位 | E22: 111.54 | F22: =SUMPRODUCT((C:C=C22)*(E:E>E22))+1 -> 20
A23: 开阳县纪检监察信息中心 | B23: 20241014105 | C23: 2024000101 | D23: 专业技术岗位 | E23: 111.39 | F23: =SUMPRODUCT((C:C=C23)*(E:E>E23))+1 -> 21
A24: 开阳县纪检监察信息中心 | B24: 20241033029 | C24: 2024000101 | D24: 专业技术岗位 | E24: 111.39 | F24: =SUMPRODUCT((C:C=C24)*(E:E>E24))+1 -> 21
A25: 开阳县纪检监察信息中心 | B25: 20241020724 | C25: 2024000101 | D25: 专业技术岗位 | E25: 111.09 | F25: =SUMPRODUCT((C:C=C25)*(E:E>E25))+1 -> 23
A26: 开阳县纪检监察信息中心 | B26: 20241040815 | C26: 2024000101 | D26: 专业技术岗位 | E26: 111.09 | F26: =SUMPRODUCT((C:C=C26)*(E:E>E26))+1 -> 23
A27: 开阳县纪检监察信息中心 | B27: 20241034819 | C27: 2024000101 | D27: 专业技术岗位 | E27: 110.61 | F27: =SUMPRODUCT((C:C=C27)*(E:E>E27))+1 -> 25
A28: 开阳县纪检监察信息中心 | B28: 20241020208 | C28: 2024000101 | D28: 专业技术岗位 | E28: 110.46 | F28: =SUMPRODUCT((C:C=C28)*(E:E>E28))+1 -> 26
A29: 开阳县纪检监察信息中心 | B29: 20241025629 | C29: 2024000101 | D29: 专业技术岗位 | E29: 110.46 | F29: =SUMPRODUCT((C:C=C29)*(E:E>E29))+1 -> 26
A30: 开阳县纪检监察信息中心 | B30: 20241016623 | C30: 2024000101 | D30: 专业技术岗位 | E30: 110.31 | F30: =SUMPRODUCT((C:C=C30)*(E:E>E30))+1 -> 28
A31: 开阳县纪检监察信息中心 | B31: 20241013723 | C31: 2024000101 | D31: 专业技术岗位 | E31: 110.16 | F31: =SUMPRODUCT((C:C=C31)*(E:E>E31))+1 -> 29
A32: 开阳县纪检监察信息中心 | B32: 20241016029 | C32: 2024000101 | D32: 专业技术岗位 | E32: 110.16 | F32: =SUMPRODUCT((C:C=C32)*(E:E>E32))+1 -> 29
A33: 开阳县纪检监察信息中心 | B33: 20241040308 | C33: 2024000101 | D33: 专业技术岗位 | E33: 110.16 | F33: =SUMPRODUCT((C:C=C33)*(E:E>E33))+1 -> 29
A34: 开阳县纪检监察信息中心 | B34: 20241025504 | C34: 2024000101 | D34: 专业技术岗位 | E34: 109.71 | F34: =SUMPRODUCT((C:C=C34)*(E:E>E34))+1 -> 32
A35: 开阳县纪检监察信息中心 | B35: 20241041125 | C35: 2024000101 | D35: 专业技术岗位 | E35: 109.71 | F35: =SUMPRODUCT((C:C=C35)*(E:E>E35))+1 -> 32
A36: 开阳县纪检监察信息中心 | B36: 20241013606 | C36: 2024000101 | D36: 专业技术岗位 | E36: 109.38 | F36: =SUMPRODUCT((C:C=C36)*(E:E>E36))+1 -> 34
A37: 开阳县纪检监察信息中心 | B37: 20241041915 | C37: 2024000101 | D37: 专业技术岗位 | E37: 109.23 | F37: =SUMPRODUCT((C:C=C37)*(E:E>E37))+1 -> 35
A38: 开阳县纪检监察信息中心 | B38: 20241012328 | C38: 2024000101 | D38: 专业技术岗位 | E38: 109.08 | F38: =SUMPRODUCT((C:C=C38)*(E:E>E38))+1 -> 36
A39: 开阳县纪检监察信息中心 | B39: 20241021625 | C39: 2024000101 | D39: 专业技术岗位 | E39: 109.08 | F39: =SUMPRODUCT((C:C=C39)*(E:E>E39))+1 -> 36
A40: 开阳县纪检监察信息中心 | B40: 20241034126 | C40: 2024000101 | D40: 专业技术岗位 | E40: 109.08 | F40: =SUMPRODUCT((C:C=C40)*(E:E>E40))+1 -> 36
A41: 开阳县纪检监察信息中心 | B41: 20241035404 | C41: 2024000101 | D41: 专业技术岗位 | E41: 109.08 | F41: =SUMPRODUCT((C:C=C41)*(E:E>E41))+1 -> 36
A42: 开阳县纪检监察信息中心 | B42: 20241021602 | C42: 2024000101 | D42: 专业技术岗位 | E42: 108.63 | F42: =SUMPRODUCT((C:C=C42)*(E:E>E42))+1 -> 40
A43: 开阳县纪检监察信息中心 | B43: 20241024108 | C43: 2024000101 | D43: 专业技术岗位 | E43: 108.45 | F43: =SUMPRODUCT((C:C=C43)*(E:E>E43))+1 -> 41
A44: 开阳县纪检监察信息中心 | B44: 20241025513 | C44: 2024000101 | D44: 专业技术岗位 | E44: 108.3 | F44: =SUMPRODUCT((C:C=C44)*(E:E>E44))+1 -> 42
A45: 开阳县纪检监察信息中心 | B45: 20241014613 | C45: 2024000101 | D45: 专业技术岗位 | E45: 108.18 | F45: =SUMPRODUCT((C:C=C45)*(E:E>E45))+1 -> 43
A46: 开阳县纪检监察信息中心 | B46: 20241023308 | C46: 2024000101 | D46: 专业技术岗位 | E46: 107.85 | F46: =SUMPRODUCT((C:C=C46)*(E:E>E46))+1 -> 44
A47: 开阳县纪检监察信息中心 | B47: 20241033725 | C47: 2024000101 | D47: 专业技术岗位 | E47: 107.7 | F47: =SUMPRODUCT((C:C=C47)*(E:E>E47))+1 -> 45
A48: 开阳县纪检监察信息中心 | B48: 20241013320 | C48: 2024000101 | D48: 专业技术岗位 | E48: 107.25 | F48: =SUMPRODUCT((C:C=C48)*(E:E>E48))+1 -> 46
A49: 开阳县纪检监察信息中心 | B49: 20241010402 | C49: 2024000101 | D49: 专业技术岗位 | E49: 107.22 | F49: =SUMPRODUCT((C:C=C49)*(E:E>E49))+1 -> 47
A50: 开阳县纪检监察信息中心 | B50: 20241025426 | C50: 2024000101 | D50: 专业技术岗位 | E50: 107.07 | F50: =SUMPRODUCT((C:C=C50)*(E:E>E50))+1 -> 48
A51: 开阳县纪检监察信息中心 | B51: 20241041314 | C51: 2024000101 | D51: 专业技术岗位 | E51: 106.92 | F51: =SUMPRODUCT((C:C=C51)*(E:E>E51))+1 -> 49
A52: 开阳县纪检监察信息中心 | B52: 20241021615 | C52: 2024000101 | D52: 专业技术岗位 | E52: 106.8 | F52: =SUMPRODUCT((C:C=C52)*(E:E>E52))+1 -> 50
A53: 开阳县纪检监察信息中心 | B53: 20241014306 | C53: 2024000101 | D53: 专业技术岗位 | E53: 106.77 | F53: =SUMPRODUCT((C:C=C53)*(E:E>E53))+1 -> 51
A54: 开阳县纪检监察信息中心 | B54: 20241016219 | C54: 2024000101 | D54: 专业技术岗位 | E54: 106.77 | F54: =SUMPRODUCT((C:C=C54)*(E:E>E54))+1 -> 51
A55: 开阳县纪检监察信息中心 | B55: 20241014926 | C55: 2024000101 | D55: 专业技术岗位 | E55: 106.47 | F55: =SUMPRODUCT((C:C=C55)*(E:E>E55))+1 -> 53
A56: 开阳县纪检监察信息中心 | B56: 20241015513 | C56: 2024000101 | D56: 专业技术岗位 | E56: 106.47 | F56: =SUMPRODUCT((C:C=C56)*(E:E>E56))+1 -> 53
A57: 开阳县纪检监察信息中心 | B57: 20241022222 | C57: 2024000101 | D57: 专业技术岗位 | E57: 106.32 | F57: =SUMPRODUCT((C:C=C57)*(E:E>E57))+1 -> 55
A58: 开阳县纪检监察信息中心 | B58: 20241031106 | C58: 2024000101 | D58: 专业技术岗位 | E58: 106.32 | F58: =SUMPRODUCT((C:C=C58)*(E:E>E58))+1 -> 55
A59: 开阳县纪检监察信息中心 | B59: 20241031222 | C59: 2024000101 | D59: 专业技术岗位 | E59: 106.32 | F59: =SUMPRODUCT((C:C=C59)*(E:E>E59))+1 -> 55
A60: 开阳县纪检监察信息中心 | B60: 20241015230 | C60: 2024000101 | D60: 专业技术岗位 | E60: 106.17 | F60: =SUMPRODUCT((C:C=C60)*(E:E>E60))+1 -> 58
A61: 开阳县纪检监察信息中心 | B61: 20241024823 | C61: 2024000101 | D61: 专业技术岗位 | E61: 106.17 | F61: =SUMPRODUCT((C:C=C61)*(E:E>E61))+1 -> 58
A62: 开阳县纪检监察信息中心 | B62: 20241010517 | C62: 2024000101 | D62: 专业技术岗位 | E62: 106.14 | F62: =SUMPRODUCT((C:C=C62)*(E:E>E62))+1 -> 60
A63: 开阳县纪检监察信息中心 | B63: 20241010920 | C63: 2024000101 | D63: 专业技术岗位 | E63: 105.84 | F63: =SUMPRODUCT((C:C=C63)*(E:E>E63))+1 -> 61
A64: 开阳县纪检监察信息中心 | B64: 20241024421 | C64: 2024000101 | D64: 专业技术岗位 | E64: 105.69 | F64: =SUMPRODUCT((C:C=C64)*(E:E>E64))+1 -> 62
A65: 开阳县纪检监察信息中心 | B65: 20241041614 | C65: 2024000101 | D65: 专业技术岗位 | E65: 105.69 | F65: =SUMPRODUCT((C:C=C65)*(E:E>E65))+1 -> 62
A66: 开阳县纪检监察信息中心 | B66: 20241035827 | C66: 2024000101 | D66: 专业技术岗位 | E66: 105.54 | F66: =SUMPRODUCT((C:C=C66)*(E:E>E66))+1 -> 64
A67: 开阳县纪检监察信息中心 | B67: 20241013604 | C67: 2024000101 | D67: 专业技术岗位 | E67: 105.24 | F67: =SUMPRODUCT((C:C=C67)*(E:E>E67))+1 -> 65
A68: 开阳县纪检监察信息中心 | B68: 20241031802 | C68: 2024000101 | D68: 专业技术岗位 | E68: 105.24 | F68: =SUMPRODUCT((C:C=C68)*(E:E>E68))+1 -> 65
A69: 开阳县纪检监察信息中心 | B69: 20241033423 | C69: 2024000101 | D69: 专业技术岗位 | E69: 105.09 | F69: =SUMPRODUCT((C:C=C69)*(E:E>E69))+1 -> 67
A70: 开阳县纪检监察信息中心 | B70: 20241034219 | C70: 2024000101 | D70: 专业技术岗位 | E70: 105.06 | F70: =SUMPRODUCT((C:C=C70)*(E:E>E70))+1 -> 68
A71: 开阳县纪检监察信息中心 | B71: 20241022923 | C71: 2024000101 | D71: 专业技术岗位 | E71: 104.94 | F71: =SUMPRODUCT((C:C=C71)*(E:E>E71))+1 -> 69
A72: 开阳县纪检监察信息中心 | B72: 20241034417 | C72: 2024000101 | D72: 专业技术岗位 | E72: 104.94 | F72: =SUMPRODUCT((C:C=C72)*(E:E>E72))+1 -> 69
A73: 开阳县纪检监察信息中心 | B73: 20241016208 | C73: 2024000101 | D73: 专业技术岗位 | E73: 104.46 | F73: =SUMPRODUCT((C:C=C73)*(E:E>E73))+1 -> 71
A74: 开阳县纪检监察信息中心 | B74: 20241022717 | C74: 2024000101 | D74: 专业技术岗位 | E74: 104.46 | F74: =SUMPRODUCT((C:C=C74)*(E:E>E74))+1 -> 71
A75: 开阳县纪检监察信息中心 | B75: 20241033110 | C75: 2024000101 | D75: 专业技术岗位 | E75: 104.46 | F75: =SUMPRODUCT((C:C=C75)*(E:E>E75))+1 -> 71
A76: 开阳县纪检监察信息中心 | B76: 20241032301 | C76: 2024000101 | D76: 专业技术岗位 | E76: 104.31 | F76: =SUMPRODUCT((C:C=C76)*(E:E>E76))+1 -> 74
A77: 开阳县纪检监察信息中心 | B77: 20241031208 | C77: 2024000101 | D77: 专业技术岗位 | E77: 104.16 | F77: =SUMPRODUCT((C:C=C77)*(E:E>E77))+1 -> 75
A78: 开阳县纪检监察信息中心 | B78: 20241012725 | C78: 2024000101 | D78: 专业技术岗位 | E78: 104.01 | F78: =SUMPRODUCT((C:C=C78)*(E:E>E78))+1 -> 76
A79: 开阳县纪检监察信息中心 | B79: 20241033227 | C79: 2024000101 | D79: 专业技术岗位 | E79: 104.01 | F79: =SUMPRODUCT((C:C=C79)*(E:E>E79))+1 -> 76
A80: 开阳县纪检监察信息中心 | B80: 20241012316 | C80: 2024000101 | D80: 专业技术岗位 | E80: 103.98 | F80: =SUMPRODUCT((C:C=C80)*(E:E>E80))+1 -> 78
A81: 开阳县纪检监察信息中心 | B81: 20241015925 | C81: 2024000101 | D81: 专业技术岗位 | E81: 103.98 | F81: =SUMPRODUCT((C:C=C81)*(E:E>E81))+1 -> 78
A82: 开阳县纪检监察信息中心 | B82: 20241013627 | C82: 2024000101 | D82: 专业技术岗位 | E82: 103.86 | F82: =SUMPRODUCT((C:C=C82)*(E:E>E82))+1 -> 80
A83: 开阳县纪检监察信息中心 | B83: 20241036024 | C83: 2024000101 | D83: 专业技术岗位 | E83: 103.71 | F83: =SUMPRODUCT((C:C=C83)*(E:E>E83))+1 -> 81
A84: 开阳县纪检监察信息中心 | B84: 20241025108 | C84: 2024000101 | D84: 专业技术岗位 | E84: 103.68 | F84: =SUMPRODUCT((C:C=C84)*(E:E>E84))+1 -> 82
A85: 开阳县纪检监察信息中心 | B85: 20241015117 | C85: 2024000101 | D85: 专业技术岗位 | E85: 103.53 | F85: =SUMPRODUCT((C:C=C85)*(E:E>E85))+1 -> 83
A86: 开阳县纪检监察信息中心 | B86: 20241022723 | C86: 2024000101 | D86: 专业技术岗位 | E86: 103.38 | F86: =SUMPRODUCT((C:C=C86)*(E:E>E86))+1 -> 84
A87: 开阳县纪检监察信息中心 | B87: 20241015814 | C87: 2024000101 | D87: 专业技术岗位 | E87: 103.26 | F87: =SUMPRODUCT((C:C=C87)*(E:E>E87))+1 -> 85
A88: 开阳县纪检监察信息中心 | B88: 20241031008 | C88: 2024000101 | D88: 专业技术岗位 | E88: 103.26 | F88: =SUMPRODUCT((C:C=C88)*(E:E>E88))+1 -> 85
A89: 开阳县纪检监察信息中心 | B89: 20241010927 | C89: 2024000101 | D89: 专业技术岗位 | E89: 103.23 | F89: =SUMPRODUCT((C:C=C89)*(E:E>E89))+1 -> 87
A90: 开阳县纪检监察信息中心 | B90: 20241031426 | C90: 2024000101 | D90: 专业技术岗位 | E90: 103.23 | F90: =SUMPRODUCT((C:C=C90)*(E:E>E90))+1 -> 87
A91: 开阳县纪检监察信息中心 | B91: 20241026007 | C91: 2024000101 | D91: 专业技术岗位 | E91: 103.11 | F91: =SUMPRODUCT((C:C=C91)*(E:E>E91))+1 -> 89
A92: 开阳县纪检监察信息中心 | B92: 20241035105 | C92: 2024000101 | D92: 专业技术岗位 | E92: 103.11 | F92: =SUMPRODUCT((C:C=C92)*(E:E>E92))+1 -> 89
A93: 开阳县纪检监察信息中心 | B93: 20241020322 | C93: 2024000101 | D93: 专业技术岗位 | E93: 103.08 | F93: =SUMPRODUCT((C:C=C93)*(E:E>E93))+1 -> 91
A94: 开阳县纪检监察信息中心 | B94: 20241031506 | C94: 2024000101 | D94: 专业技术岗位 | E94: 103.08 | F94: =SUMPRODUCT((C:C=C94)*(E:E>E94))+1 -> 91
A95: 开阳县纪检监察信息中心 | B95: 20241012514 | C95: 2024000101 | D95: 专业技术岗位 | E95: 102.78 | F95: =SUMPRODUCT((C:C=C95)*(E:E>E95))+1 -> 93
A96: 开阳县纪检监察信息中心 | B96: 20241023530 | C96: 2024000101 | D96: 专业技术岗位 | E96: 102.78 | F96: =SUMPRODUCT((C:C=C96)*(E:E>E96))+1 -> 93
A97: 开阳县纪检监察信息中心 | B97: 20241041304 | C97: 2024000101 | D97: 专业技术岗位 | E97: 102.63 | F97: =SUMPRODUCT((C:C=C97)*(E:E>E97))+1 -> 95
A98: 开阳县纪检监察信息中心 | B98: 20241023723 | C98: 2024000101 | D98: 专业技术岗位 | E98: 102.15 | F98: =SUMPRODUCT((C:C=C98)*(E:E>E98))+1 -> 96
A99: 开阳县纪检监察信息中心 | B99: 20241025615 | C99: 2024000101 | D99: 专业技术岗位 | E99: 102 | F99: =SUMPRODUCT((C:C=C99)*(E:E>E99))+1 -> 97
A100: 开阳县纪检监察信息中心 | B100: 20241033301 | C100: 2024000101 | D100: 专业技术岗位 | E100: 102 | F100: =SUMPRODUCT((C:C=C100)*(E:E>E100))+1 -> 97
A101: 开阳县纪检监察信息中心 | B101: 20241010902 | C101: 2024000101 | D101: 专业技术岗位 | E101: 101.85 | F101: =SUMPRODUCT((C:C=C101)*(E:E>E101))+1 -> 99
A102: 开阳县纪检监察信息中心 | B102: 20241023923 | C102: 2024000101 | D102: 专业技术岗位 | E102: 101.85 | F102: =SUMPRODUCT((C:C=C102)*(E:E>E102))+1 -> 99
A103: 开阳县纪检监察信息中心 | B103: 20241025512 | C103: 2024000101 | D103: 专业技术岗位 | E103: 101.85 | F103: =SUMPRODUCT((C:C=C103)*(E:E>E103))+1 -> 99
A104: 开阳县纪检监察信息中心 | B104: 20241010626 | C104: 2024000101 | D104: 专业技术岗位 | E104: 101.7 | F104: =SUMPRODUCT((C:C=C104)*(E:E>E104))+1 -> 102
A105: 开阳县纪检监察信息中心 | B105: 20241011523 | C105: 2024000101 | D105: 专业技术岗位 | E105: 101.7 | F105: =SUMPRODUCT((C:C=C105)*(E:E>E105))+1 -> 102
A106: 开阳县纪检监察信息中心 | B106: 20241042221 | C106: 2024000101 | D106: 专业技术岗位 | E106: 101.67 | F106: =SUMPRODUCT((C:C=C106)*(E:E>E106))+1 -> 104
A107: 开阳县纪检监察信息中心 | B107: 20241030217 | C107: 2024000101 | D107: 专业技术岗位 | E107: 101.25 | F107: =SUMPRODUCT((C:C=C107)*(E:E>E107))+1 -> 105
A108: 开阳县纪检监察信息中心 | B108: 20241041019 | C108: 2024000101 | D108: 专业技术岗位 | E108: 101.07 | F108: =SUMPRODUCT((C:C=C108)*(E:E>E108))+1 -> 106
A109: 开阳县纪检监察信息中心 | B109: 20241010103 | C109: 2024000101 | D109: 专业技术岗位 | E109: 100.92 | F109: =SUMPRODUCT((C:C=C109)*(E:E>E109))+1 -> 107
A110: 开阳县纪检监察信息中心 | B110: 20241010826 | C110: 2024000101 | D110: 专业技术岗位 | E110: 100.8 | F110: =SUMPRODUCT((C:C=C110)*(E:E>E110))+1 -> 108
A111: 开阳县纪检监察信息中心 | B111: 20241010622 | C111: 2024000101 | D111: 专业技术岗位 | E111: 100.77 | F111: =SUMPRODUCT((C:C=C111)*(E:E>E111))+1 -> 109
A112: 开阳县纪检监察信息中心 | B112: 20241032112 | C112: 2024000101 | D112: 专业技术岗位 | E112: 100.77 | F112: =SUMPRODUCT((C:C=C112)*(E:E>E112))+1 -> 109
A113: 开阳县纪检监察信息中心 | B113: 20241021921 | C113: 2024000101 | D113: 专业技术岗位 | E113: 100.62 | F113: =SUMPRODUCT((C:C=C113)*(E:E>E113))+1 -> 111
A114: 开阳县纪检监察信息中心 | B114: 20241024821 | C114: 2024000101 | D114: 专业技术岗位 | E114: 100.62 | F114: =SUMPRODUCT((C:C=C114)*(E:E>E114))+1 -> 111
A115: 开阳县纪检监察信息中心 | B115: 20241011408 | C115: 2024000101 | D115: 专业技术岗位 | E115: 100.47 | F115: =SUMPRODUCT((C:C=C115)*(E:E>E115))+1 -> 113
A116: 开阳县纪检监察信息中心 | B116: 20241013011 | C116: 2024000101 | D116: 专业技术岗位 | E116: 100.47 | F116: =SUMPRODUCT((C:C=C116)*(E:E>E116))+1 -> 113
A117: 开阳县纪检监察信息中心 | B117: 20241013522 | C117: 2024000101 | D117: 专业技术岗位 | E117: 100.47 | F117: =SUMPRODUCT((C:C=C117)*(E:E>E117))+1 -> 113
A118: 开阳县纪检监察信息中心 | B118: 20241032722 | C118: 2024000101 | D118: 专业技术岗位 | E118: 100.47 | F118: =SUMPRODUCT((C:C=C118)*(E:E>E118))+1 -> 113
A119: 开阳县纪检监察信息中心 | B119: 20241042106 | C119: 2024000101 | D119: 专业技术岗位 | E119: 100.47 | F119: =SUMPRODUCT((C:C=C119)*(E:E>E119))+1 -> 113
A120: 开阳县纪检监察信息中心 | B120: 20241021107 | C120: 2024000101 | D120: 专业技术岗位 | E120: 100.32 | F120: =SUMPRODUCT((C:C=C120)*(E:E>E120))+1 -> 118
A121: 开阳县纪检监察信息中心 | B121: 20241030819 | C121: 2024000101 | D121: 专业技术岗位 | E121: 100.32 | F121: =SUMPRODUCT((C:C=C121)*(E:E>E121))+1 -> 118
A122: 开阳县纪检监察信息中心 | B122: 20241021208 | C122: 2024000101 | D122: 专业技术岗位 | E122: 100.17 | F122: =SUMPRODUCT((C:C=C122)*(E:E>E122))+1 -> 120
A123: 开阳县纪检监察信息中心 | B123: 20241013811 | C123: 2024000101 | D123: 专业技术岗位 | E123: 100.14 | F123: =SUMPRODUCT((C:C=C123)*(E:E>E123))+1 -> 121
A124: 开阳县纪检监察信息中心 | B124: 20241030212 | C124: 2024000101 | D124: 专业技术岗位 | E124: 99.99 | F124: =SUMPRODUCT((C:C=C124)*(E:E>E124))+1 -> 122
A125: 开阳县纪检监察信息中心 | B125: 20241035516 | C125: 2024000101 | D125: 专业技术岗位 | E125: 99.72 | F125: =SUMPRODUCT((C:C=C125)*(E:E>E125))+1 -> 123
A126: 开阳县纪检监察信息中心 | B126: 20241014309 | C126: 2024000101 | D126: 专业技术岗位 | E126: 99.69 | F126: =SUMPRODUCT((C:C=C126)*(E:E>E126))+1 -> 124
A127: 开阳县纪检监察信息中心 | B127: 20241015818 | C127: 2024000101 | D127: 专业技术岗位 | E127: 99.69 | F127: =SUMPRODUCT((C:C=C127)*(E:E>E127))+1 -> 124
A128: 开阳县纪检监察信息中心 | B128: 20241016230 | C128: 2024000101 | D128: 专业技术岗位 | E128: 99.69 | F128: =SUMPRODUCT((C:C=C128)*(E:E>E128))+1 -> 124
A129: 开阳县纪检监察信息中心 | B129: 20241033313 | C129: 2024000101 | D129: 专业技术岗位 | E129: 99.69 | F129: =SUMPRODUCT((C:C=C129)*(E:E>E129))+1 -> 124
A130: 开阳县纪检监察信息中心 | B130: 20241013316 | C130: 2024000101 | D130: 专业技术岗位 | E130: 99.54 | F130: =SUMPRODUCT((C:C=C130)*(E:E>E130))+1 -> 128
A131: 开阳县纪检监察信息中心 | B131: 20241041529 | C131: 2024000101 | D131: 专业技术岗位 | E131: 99.54 | F131: =SUMPRODUCT((C:C=C131)*(E:E>E131))+1 -> 128
A132: 开阳县纪检监察信息中心 | B132: 20241020204 | C132: 2024000101 | D132: 专业技术岗位 | E132: 99.39 | F132: =SUMPRODUCT((C:C=C132)*(E:E>E132))+1 -> 130
A133: 开阳县纪检监察信息中心 | B133: 20241025408 | C133: 2024000101 | D133: 专业技术岗位 | E133: 99.24 | F133: =SUMPRODUCT((C:C=C133)*(E:E>E133))+1 -> 131
A134: 开阳县纪检监察信息中心 | B134: 20241035127 | C134: 2024000101 | D134: 专业技术岗位 | E134: 99.24 | F134: =SUMPRODUCT((C:C=C134)*(E:E>E134))+1 -> 131
A135: 开阳县纪检监察信息中心 | B135: 20241030311 | C135: 2024000101 | D135: 专业技术岗位 | E135: 99.09 | F135: =SUMPRODUCT((C:C=C135)*(E:E>E135))+1 -> 133
A136: 开阳县纪检监察信息中心 | B136: 20241021122 | C136: 2024000101 | D136: 专业技术岗位 | E136: 98.79 | F136: =SUMPRODUCT((C:C=C136)*(E:E>E136))+1 -> 134
A137: 开阳县纪检监察信息中心 | B137: 20241024328 | C137: 2024000101 | D137: 专业技术岗位 | E137: 98.76 | F137: =SUMPRODUCT((C:C=C137)*(E:E>E137))+1 -> 135
A138: 开阳县纪检监察信息中心 | B138: 20241033524 | C138: 2024000101 | D138: 专业技术岗位 | E138: 98.76 | F138: =SUMPRODUCT((C:C=C138)*(E:E>E138))+1 -> 135
A139: 开阳县纪检监察信息中心 | B139: 20241011305 | C139: 2024000101 | D139: 专业技术岗位 | E139: 98.61 | F139: =SUMPRODUCT((C:C=C139)*(E:E>E139))+1 -> 137
A140: 开阳县纪检监察信息中心 | B140: 20241034529 | C140: 2024000101 | D140: 专业技术岗位 | E140: 98.61 | F140: =SUMPRODUCT((C:C=C140)*(E:E>E140))+1 -> 137
A141: 开阳县纪检监察信息中心 | B141: 20241020408 | C141: 2024000101 | D141: 专业技术岗位 | E141: 98.49 | F141: =SUMPRODUCT((C:C=C141)*(E:E>E141))+1 -> 139
A142: 开阳县纪检监察信息中心 | B142: 20241021923 | C142: 2024000101 | D142: 专业技术岗位 | E142: 98.46 | F142: =SUMPRODUCT((C:C=C142)*(E:E>E142))+1 -> 140
A143: 开阳县纪检监察信息中心 | B143: 20241040809 | C143: 2024000101 | D143: 专业技术岗位 | E143: 98.46 | F143: =SUMPRODUCT((C:C=C143)*(E:E>E143))+1 -> 140
A144: 开阳县纪检监察信息中心 | B144: 20241010609 | C144: 2024000101 | D144: 专业技术岗位 | E144: 98.34 | F144: =SUMPRODUCT((C:C=C144)*(E:E>E144))+1 -> 142
A145: 开阳县纪检监察信息中心 | B145: 20241041603 | C145: 2024000101 | D145: 专业技术岗位 | E145: 98.31 | F145: =SUMPRODUCT((C:C=C145)*(E:E>E145))+1 -> 143
A146: 开阳县纪检监察信息中心 | B146: 20241011909 | C146: 2024000101 | D146: 专业技术岗位 | E146: 98.16 | F146: =SUMPRODUCT((C:C=C146)*(E:E>E146))+1 -> 144
A147: 开阳县纪检监察信息中心 | B147: 20241031109 | C147: 2024000101 | D147: 专业技术岗位 | E147: 98.16 | F147: =SUMPRODUCT((C:C=C147)*(E:E>E147))+1 -> 144
A148: 开阳县纪检监察信息中心 | B148: 20241032107 | C148: 2024000101 | D148: 专业技术岗位 | E148: 98.16 | F148: =SUMPRODUCT((C:C=C148)*(E:E>E148))+1 -> 144
A149: 开阳县纪检监察信息中心 | B149: 20241021505 | C149: 2024000101 | D149: 专业技术岗位 | E149: 98.01 | F149: =SUMPRODUCT((C:C=C149)*(E:E>E149))+1 -> 147
A150: 开阳县纪检监察信息中心 | B150: 20241015407 | C150: 2024000101 | D150: 专业技术岗位 | E150: 97.86 | F150: =SUMPRODUCT((C:C=C150)*(E:E>E150))+1 -> 148
A151: 开阳县纪检监察信息中心 | B151: 20241034121 | C151: 2024000101 | D151: 专业技术岗位 | E151: 97.41 | F151: =SUMPRODUCT((C:C=C151)*(E:E>E151))+1 -> 149
A152: 开阳县纪检监察信息中心 | B152: 20241020722 | C152: 2024000101 | D152: 专业技术岗位 | E152: 97.38 | F152: =SUMPRODUCT((C:C=C152)*(E:E>E152))+1 -> 150
A153: 开阳县纪检监察信息中心 | B153: 20241020920 | C153: 2024000101 | D153: 专业技术岗位 | E153: 97.23 | F153: =SUMPRODUCT((C:C=C153)*(E:E>E153))+1 -> 151
A154: 开阳县纪检监察信息中心 | B154: 20241034106 | C154: 2024000101 | D154: 专业技术岗位 | E154: 97.23 | F154: =SUMPRODUCT((C:C=C154)*(E:E>E154))+1 -> 151
A155: 开阳县纪检监察信息中心 | B155: 20241016209 | C155: 2024000101 | D155: 专业技术岗位 | E155: 97.11 | F155: =SUMPRODUCT((C:C=C155)*(E:E>E155))+1 -> 153
A156: 开阳县纪检监察信息中心 | B156: 20241015517 | C156: 2024000101 | D156: 专业技术岗位 | E156: 97.08 | F156: =SUMPRODUCT((C:C=C156)*(E:E>E156))+1 -> 154
A157: 开阳县纪检监察信息中心 | B157: 20241031521 | C157: 2024000101 | D157: 专业技术岗位 | E157: 97.08 | F157: =SUMPRODUCT((C:C=C157)*(E:E>E157))+1 -> 154
A158: 开阳县纪检监察信息中心 | B158: 20241040217 | C158: 2024000101 | D158: 专业技术岗位 | E158: 97.08 | F158: =SUMPRODUCT((C:C=C158)*(E:E>E158))+1 -> 154
A159: 开阳县纪检监察信息中心 | B159: 20241040706 | C159: 2024000101 | D159: 专业技术岗位 | E159: 97.08 | F159: =SUMPRODUCT((C:C=C159)*(E:E>E159))+1 -> 154
A160: 开阳县纪检监察信息中心 | B160: 20241040111 | C160: 2024000101 | D160: 专业技术岗位 | E160: 96.96 | F160: =SUMPRODUCT((C:C=C160)*(E:E>E160))+1 -> 158
A161: 开阳县纪检监察信息中心 | B161: 20241012109 | C161: 2024000101 | D161: 专业技术岗位 | E161: 96.93 | F161: =SUMPRODUCT((C:C=C161)*(E:E>E161))+1 -> 159
A162: 开阳县纪检监察信息中心 | B162: 20241014822 | C162: 2024000101 | D162: 专业技术岗位 | E162: 96.93 | F162: =SUMPRODUCT((C:C=C162)*(E:E>E162))+1 -> 159
A163: 开阳县纪检监察信息中心 | B163: 20241015705 | C163: 2024000101 | D163: 专业技术岗位 | E163: 96.78 | F163: =SUMPRODUCT((C:C=C163)*(E:E>E163))+1 -> 161
A164: 开阳县纪检监察信息中心 | B164: 20241033512 | C164: 2024000101 | D164: 专业技术岗位 | E164: 96.78 | F164: =SUMPRODUCT((C:C=C164)*(E:E>E164))+1 -> 161
A165: 开阳县纪检监察信息中心 | B165: 20241035417 | C165: 2024000101 | D165: 专业技术岗位 | E165: 96.78 | F165: =SUMPRODUCT((C:C=C165)*(E:E>E165))+1 -> 161
A166: 开阳县纪检监察信息中心 | B166: 20241021119 | C166: 2024000101 | D166: 专业技术岗位 | E166: 96.63 | F166: =SUMPRODUCT((C:C=C166)*(E:E>E166))+1 -> 164
A167: 开阳县纪检监察信息中心 | B167: 20241033303 | C167: 2024000101 | D167: 专业技术岗位 | E167: 96.63 | F167: =SUMPRODUCT((C:C=C167)*(E:E>E167))+1 -> 164
A168: 开阳县纪检监察信息中心 | B168: 20241033630 | C168: 2024000101 | D168: 专业技术岗位 | E168: 96.63 | F168: =SUMPRODUCT((C:C=C168)*(E:E>E168))+1 -> 164
A169: 开阳县纪检监察信息中心 | B169: 20241035119 | C169: 2024000101 | D169: 专业技术岗位 | E169: 96.63 | F169: =SUMPRODUCT((C:C=C169)*(E:E>E169))+1 -> 164
A170: 开阳县纪检监察信息中心 | B170: 20241014329 | C170: 2024000101 | D170: 专业技术岗位 | E170: 96.33 | F170: =SUMPRODUCT((C:C=C170)*(E:E>E170))+1 -> 168
A171: 开阳县纪检监察信息中心 | B171: 20241021121 | C171: 2024000101 | D171: 专业技术岗位 | E171: 96.3 | F171: =SUMPRODUCT((C:C=C171)*(E:E>E171))+1 -> 169
A172: 开阳县纪检监察信息中心 | B172: 20241013915 | C172: 2024000101 | D172: 专业技术岗位 | E172: 96.18 | F172: =SUMPRODUCT((C:C=C172)*(E:E>E172))+1 -> 170
A173: 开阳县纪检监察信息中心 | B173: 20241035230 | C173: 2024000101 | D173: 专业技术岗位 | E173: 96.15 | F173: =SUMPRODUCT((C:C=C173)*(E:E>E173))+1 -> 171
A174: 开阳县纪检监察信息中心 | B174: 20241014104 | C174: 2024000101 | D174: 专业技术岗位 | E174: 96 | F174: =SUMPRODUCT((C:C=C174)*(E:E>E174))+1 -> 172
A175: 开阳县纪检监察信息中心 | B175: 20241042626 | C175: 2024000101 | D175: 专业技术岗位 | E175: 96 | F175: =SUMPRODUCT((C:C=C175)*(E:E>E175))+1 -> 172
A176: 开阳县纪检监察信息中心 | B176: 20241021807 | C176: 2024000101 | D176: 专业技术岗位 | E176: 95.55 | F176: =SUMPRODUCT((C:C=C176)*(E:E>E176))+1 -> 174
A177: 开阳县纪检监察信息中心 | B177: 20241024121 | C177: 2024000101 | D177: 专业技术岗位 | E177: 95.4 | F177: =SUMPRODUCT((C:C=C177)*(E:E>E177))+1 -> 175
A178: 开阳县纪检监察信息中心 | B178: 20241034006 | C178: 2024000101 | D178: 专业技术岗位 | E178: 95.4 | F178: =SUMPRODUCT((C:C=C178)*(E:E>E178))+1 -> 175
A179: 开阳县纪检监察信息中心 | B179: 20241032329 | C179: 2024000101 | D179: 专业技术岗位 | E179: 95.07 | F179: =SUMPRODUCT((C:C=C179)*(E:E>E179))+1 -> 177
A180: 开阳县纪检监察信息中心 | B180: 20241041809 | C180: 2024000101 | D180: 专业技术岗位 | E180: 95.07 | F180: =SUMPRODUCT((C:C=C180)*(E:E>E180))+1 -> 177
A181: 开阳县纪检监察信息中心 | B181: 20241016805 | C181: 2024000101 | D181: 专业技术岗位 | E181: 94.95 | F181: =SUMPRODUCT((C:C=C181)*(E:E>E181))+1 -> 179
A182: 开阳县纪检监察信息中心 | B182: 20241031927 | C182: 2024000101 | D182: 专业技术岗位 | E182: 94.77 | F182: =SUMPRODUCT((C:C=C182)*(E:E>E182))+1 -> 180
A183: 开阳县纪检监察信息中心 | B183: 20241011020 | C183: 2024000101 | D183: 专业技术岗位 | E183: 94.62 | F183: =SUMPRODUCT((C:C=C183)*(E:E>E183))+1 -> 181
A184: 开阳县纪检监察信息中心 | B184: 20241011329 | C184: 2024000101 | D184: 专业技术岗位 | E184: 94.47 | F184: =SUMPRODUCT((C:C=C184)*(E:E>E184))+1 -> 182
A185: 开阳县纪检监察信息中心 | B185: 20241043010 | C185: 2024000101 | D185: 专业技术岗位 | E185: 94.47 | F185: =SUMPRODUCT((C:C=C185)*(E:E>E185))+1 -> 182
A186: 开阳县纪检监察信息中心 | B186: 20241010102 | C186: 2024000101 | D186: 专业技术岗位 | E186: 94.32 | F186: =SUMPRODUCT((C:C=C186)*(E:E>E186))+1 -> 184
A187: 开阳县纪检监察信息中心 | B187: 20241015404 | C187: 2024000101 | D187: 专业技术岗位 | E187: 94.32 | F187: =SUMPRODUCT((C:C=C187)*(E:E>E187))+1 -> 184
A188: 开阳县纪检监察信息中心 | B188: 20241041203 | C188: 2024000101 | D188: 专业技术岗位 | E188: 94.32 | F188: =SUMPRODUCT((C:C=C188)*(E:E>E188))+1 -> 184
A189: 开阳县纪检监察信息中心 | B189: 20241012707 | C189: 2024000101 | D189: 专业技术岗位 | E189: 94.17 | F189: =SUMPRODUCT((C:C=C189)*(E:E>E189))+1 -> 187
A190: 开阳县纪检监察信息中心 | B190: 20241032421 | C190: 2024000101 | D190: 专业技术岗位 | E190: 94.17 | F190: =SUMPRODUCT((C:C=C190)*(E:E>E190))+1 -> 187
A191: 开阳县纪检监察信息中心 | B191: 20241040819 | C191: 2024000101 | D191: 专业技术岗位 | E191: 94.17 | F191: =SUMPRODUCT((C:C=C191)*(E:E>E191))+1 -> 187
A192: 开阳县纪检监察信息中心 | B192: 20241032017 | C192: 2024000101 | D192: 专业技术岗位 | E192: 94.02 | F192: =SUMPRODUCT((C:C=C192)*(E:E>E192))+1 -> 190
A193: 开阳县纪检监察信息中心 | B193: 20241042917 | C193: 2024000101 | D193: 专业技术岗位 | E193: 94.02 | F193: =SUMPRODUCT((C:C=C193)*(E:E>E193))+1 -> 190
A194: 开阳县纪检监察信息中心 | B194: 20241042020 | C194: 2024000101 | D194: 专业技术岗位 | E194: 93.99 | F194: =SUMPRODUCT((C:C=C194)*(E:E>E194))+1 -> 192
A195: 开阳县纪检监察信息中心 | B195: 20241012928 | C195: 2024000101 | D195: 专业技术岗位 | E195: 93.87 | F195: =SUMPRODUCT((C:C=C195)*(E:E>E195))+1 -> 193
A196: 开阳县纪检监察信息中心 | B196: 20241020804 | C196: 2024000101 | D196: 专业技术岗位 | E196: 93.87 | F196: =SUMPRODUCT((C:C=C196)*(E:E>E196))+1 -> 193
A197: 开阳县纪检监察信息中心 | B197: 20241031510 | C197: 2024000101 | D197: 专业技术岗位 | E197: 93.84 | F197: =SUMPRODUCT((C:C=C197)*(E:E>E197))+1 -> 195
A198: 开阳县纪检监察信息中心 | B198: 20241031817 | C198: 2024000101 | D198: 专业技术岗位 | E198: 93.84 | F198: =SUMPRODUCT((C:C=C198)*(E:E>E198))+1 -> 195
A199: 开阳县纪检监察信息中心 | B199: 20241041902 | C199: 2024000101 | D199: 专业技术岗位 | E199: 93.84 | F199: =SUMPRODUCT((C:C=C199)*(E:E>E199))+1 -> 195
A200: 开阳县纪检监察信息中心 | B200: 20241032925 | C200: 2024000101 | D200: 专业技术岗位 | E200: 93.69 | F200: =SUMPRODUCT((C:C=C200)*(E:E>E200))+1 -> 198
... 4300 more rows
